bitfinex/quotes_SOLUSD_20250809
["timestamp","ask_amount","ask_price","bid_price","bid_amount"]
[1754716732737,8.14882055,180.92,180.9,0.06]
[1754716733247,5.52699939,180.93,180.9,0.06]
[1754716733448,0.7,180.97,180.9,15.88621557]
[1754716733653,8.14882055,180.95,180.9,15.88621557]
[1754716733854,8.14882055,180.95,180.9,23.31503612]
[1754716733855,0.7,180.94,180.9,23.31503612]
[1754716734030,8.14882055,180.93,180.9,15.16621557]
[1754716734238,0.7,180.95,180.9,15.16621557]
[1754716734551,0.7,180.95,180.9,0.06]
[1754716734552,5.52669393,180.94,180.9,0.06]
[1754716734852,0.7,180.93,180.9,0.06]
[1754716735222,13.67551448,180.94,180.9,0.06]
[1754716735557,14.37551448,180.94,180.9,0.06]
[1754716735721,6.22669393,180.94,180.9,0.06]
[1754716735923,0.7,180.93,180.9,0.06]
[1754716736354,0.7,180.92,180.9,0.06]
[1754716736858,16.02713938,180.97,180.92,15.10621557]
[1754716736859,6.22608311,180.96,180.92,15.10621557]
[1754716737068,6.22608311,180.96,180.9,0.06]
[1754716737069,0.7,180.95,180.9,0.06]
[1754716737226,5.52608311,180.96,180.91,15.10621557]
[1754716737555,5.52608311,180.96,180.9,0.06]
[1754716737556,8.14882055,180.92,180.9,0.06]
[1754716737756,8.14882055,180.94,180.9,0.06]
[1754716737962,8.84882055,180.95,180.91,15.10621557]
[1754716738261,19.34129089,180.96,180.9,8.20882055]
[1754716738559,5.52669393,180.94,180.91,15.10621557]
[1754716738929,14.37551448,180.94,180.9,0.06]
[1754716739156,5.52669393,180.94,180.91,15.10621557]
[1754716739352,5.52669393,180.94,180.91,23.25503612]
[1754716739561,5.52669393,180.94,180.91,23.97503612]
[1754716740370,5.52669393,180.94,180.91,15.82621557]
[1754716740548,6.22669393,180.94,180.9,0.06]
[1754716740868,6.22669393,180.94,180.91,15.10621557]
[1754716741041,5.52669393,180.94,180.92,15.10621557]
[1754716741242,13.67490366,180.96,180.92,15.10621557]
[1754716741455,8.84882055,180.95,180.9,0.06]
[1754716742040,0.7,180.95,180.92,15.10621557]
[1754716742232,5.52608311,180.96,180.93,15.10621557]
[1754716742436,5.52608311,180.96,180.93,8.86882055]
[1754716742633,8.87882055,180.98,180.9,0.06]
[1754716742634,5.52577775,180.97,180.95,15.10621557]
[1754716743141,5.52577775,180.97,180.94,8.86882055]
[1754716743346,5.52577775,180.97,180.96,15.60621557]
[1754716743550,5.52577775,180.97,180.96,0.5]
[1754716743551,13.6745983,180.97,180.96,0.5]
[1754716743728,0.03,180.98,180.97,15.39053871]
[1754716743928,0.03,181.0,180.97,23.53935926]
[1754716744171,0.03,181.02,181.0,15.39053871]
[1754716744329,0.72,181.12,181.02,15.10621557]
[1754716744535,8.21395514,181.25,181.05,0.28432314]
[1754716744536,0.72,181.15,181.05,0.28432314]
[1754716744855,49.7,181.22,181.13,15.10621557]
[1754716744856,14.3884982,181.17,181.13,15.10621557]
[1754716745032,6.23967765,181.17,181.11,23.25503612]
[1754716745230,22.09536553,181.18,181.13,15.10621557]
[1754716745527,5.51876379,181.2,181.16,8.14882055]
[1754716745731,5.51876379,181.2,181.17,15.10621557]
[1754716746455,8.14882055,181.18,181.1,0.7]
[1754716746642,8.14882055,181.13,181.1,15.10621557]
[1754716746844,8.86882055,181.13,181.1,15.10621557]
[1754716747050,8.86882055,181.13,181.09,0.28432314]
[1754716747242,8.14882055,181.11,181.08,15.10621557]
[1754716747556,0.72,181.15,181.08,15.10621557]
[1754716747731,8.14882055,181.13,181.08,8.84882055]
[1754716747935,8.14882055,181.11,181.07,15.24837714]
[1754716748130,8.14882055,181.1,181.07,15.10621557]
[1754716748348,0.72,181.11,181.06,15.10621557]
[1754716748556,8.14882055,181.09,181.06,15.10621557]
[1754716748876,8.14882055,181.09,181.04,23.25503612]
[1754716749029,8.14882055,181.09,181.04,23.95503612]
[1754716749442,8.14882055,181.09,181.04,15.80621557]
[1754716749650,8.14882055,181.08,181.04,15.80621557]
[1754716750451,5.52272601,181.07,181.04,15.80621557]
[1754716750761,6.24272601,181.07,181.02,15.24837714]
[1754716750944,8.14882055,181.06,181.02,15.24837714]
[1754716751137,8.14882055,181.05,180.96,50.04]
[1754716751344,20.04954105,181.07,181.01,15.10621557]
[1754716751543,8.14882055,181.06,181.01,15.10621557]
[1754716751738,20.04954105,181.07,181.01,0.7]
[1754716751938,20.04954105,181.07,181.02,0.28432314]
[1754716752139,27.4783616,181.07,181.03,15.80621557]
[1754716752339,19.32954105,181.07,181.03,15.80621557]
[1754716752552,5.52272601,181.07,181.04,0.28432314]
[1754716752838,5.52272601,181.07,181.06,0.28432314]
[1754716754072,5.52272601,181.07,180.97,22.65880667]
[1754716754073,19.32954105,181.07,181.02,15.10621557]
[1754716754369,27.4783616,181.07,181.03,0.28432314]
[1754716754544,13.80681504,181.07,181.04,15.10621557]
[1754716754864,5.52211607,181.09,181.07,0.28432314]
[1754716755069,5.52211607,181.09,181.07,9.13314369]
[1754716755373,5.52211607,181.09,181.07,0.28432314]
[1754716756068,5.52211607,181.09,181.08,24.23935926]
[1754716756453,19.32420494,181.12,181.09,0.28432314]
[1754716756670,27.47302549,181.12,181.09,0.28432314]
[1754716756855,28.19302549,181.12,181.09,0.28432314]
[1754716758176,0.03,181.11,181.09,0.28432314]
[1754716758964,0.03,181.11,181.07,0.28432314]
[1754716759760,0.03,181.11,181.08,15.10621557]
[1754716759970,0.03,181.11,181.09,0.98432314]
[1754716760142,0.03,181.11,181.1,23.53935926]
[1754716760568,0.03,181.11,181.1,0.98432314]
[1754716760781,8.89882055,181.11,181.03,0.7]
[1754716761070,8.14882055,181.09,181.05,0.14216157]
[1754716761461,8.14882055,181.09,181.05,0.98432314]
[1754716761663,8.14882055,181.08,181.03,8.14882055]
[1754716761987,5.52211607,181.09,181.05,0.28432314]
[1754716762147,8.86882055,181.08,181.02,0.7]
[1754716762352,8.14882055,181.07,181.02,8.84882055]
[1754716762556,0.72,181.07,181.03,0.28432314]
[1754716762755,8.86882055,181.07,181.03,15.10621557]
[1754716762966,8.14882055,181.04,181.0,0.06]
[1754716763278,8.14882055,181.01,181.0,0.06]
[1754716763864,8.14882055,181.02,181.0,0.06]
[1754716764053,5.52455665,181.01,181.0,0.06]
[1754716765079,5.52455665,181.01,181.0,0.34432314]
[1754716765260,5.52455665,181.01,181.0,24.29935926]
[1754716765860,5.52455665,181.01,181.0,23.59935926]
[1754716766199,21.9584414,181.04,181.01,15.10621557]
[1754716766479,5.52333609,181.05,181.03,15.10621557]
[1754716766668,27.48049687,181.05,181.02,0.28432314]
[1754716766983,28.20049687,181.05,181.01,15.39053871]
[1754716767164,19.33167632,181.05,181.01,15.39053871]
[1754716767364,19.33167632,181.05,181.02,15.10621557]
[1754716767887,19.33167632,181.05,181.03,0.28432314]
[1754716768061,0.72,181.08,181.03,0.28432314]
[1754716768062,5.52303103,181.06,181.04,15.10621557]
[1754716768263,5.52303103,181.06,181.04,23.25503612]
[1754716768462,5.52303103,181.06,181.05,23.25503612]
[1754716768654,5.52303103,181.06,181.05,15.10621557]
[1754716769087,5.52303103,181.06,181.05,15.39053871]
[1754716769883,13.80630855,181.08,181.06,15.10621557]
[1754716770682,13.80630855,181.08,181.05,23.53935926]
[1754716771074,13.80630855,181.08,181.05,15.39053871]
[1754716771274,20.04872957,181.08,181.05,15.39053871]
[1754716771782,19.32872957,181.08,181.05,15.39053871]
[1754716773070,19.32872957,181.08,181.05,8.43314369]
[1754716773264,19.32872957,181.08,181.05,0.28432314]
[1754716773467,19.32872957,181.08,181.05,15.39053871]
[1754716773876,5.52242102,181.08,181.07,23.53935926]
[1754716774080,5.52242102,181.08,181.07,24.19935926]
[1754716774485,5.52242102,181.08,181.07,23.53935926]
[1754716774673,6.21242102,181.08,181.02,0.66]
[1754716774872,5.52242102,181.08,181.06,15.39053871]
[1754716775079,5.52242102,181.08,181.06,24.19935926]
[1754716775280,5.52242102,181.08,181.07,0.28432314]
[1754716775472,5.52242102,181.08,181.07,9.09314369]
[1754716775680,5.52242102,181.08,181.07,0.94432314]
[1754716775987,5.52242102,181.08,181.07,9.09314369]
[1754716776967,13.8339842,181.11,181.08,0.28432314]
[1754716777189,14.5239842,181.11,181.1,15.10621557]
[1754716777490,14.5239842,181.11,181.08,0.28432314]
[1754716777673,14.5239842,181.11,181.06,15.10621557]
[1754716777674,13.8339842,181.11,181.06,15.10621557]
[1754716777868,0.69,181.1,181.07,8.43314369]
[1754716778368,13.8339842,181.11,181.05,15.10621557]
[1754716778582,13.8339842,181.11,181.09,0.14216157]
[1754716778977,13.8339842,181.11,181.1,15.10621557]
[1754716779879,0.03,181.11,181.1,23.53935926]
[1754716780194,0.03,181.11,181.1,24.19935926]
[1754716781096,0.03,181.11,181.1,23.53935926]
[1754716781282,0.03,181.11,181.1,0.28432314]
[1754716781483,0.03,181.11,181.1,16.05053871]
[1754716781794,0.03,181.11,181.1,24.19935926]
[1754716781970,0.03,181.11,181.1,16.05053871]
[1754716782166,0.03,181.11,181.1,24.19935926]
[1754716782391,0.03,181.11,181.1,16.05053871]
[1754716782590,0.03,181.11,181.1,24.19935926]
[1754716784677,0.03,181.11,181.1,15.10621557]
[1754716784882,0.03,181.11,181.1,23.25503612]
[1754716785076,0.03,181.11,181.1,23.53935926]
[1754716785266,0.03,181.11,181.1,24.19935926]
[1754716793512,0.03,181.11,181.1,16.05053871]
[1754716793715,0.03,181.11,181.1,23.53935926]
[1754716794009,0.03,181.11,181.1,64.49053871]
[1754716794211,0.03,181.11,181.1,72.63935926]
[1754716795019,0.03,181.11,181.1,63.83053871]
[1754716795305,0.03,181.11,181.1,72.63935926]
[1754716795512,0.03,181.11,181.1,71.97935926]
[1754716795697,0.03,181.11,181.1,72.63935926]
[1754716796714,0.03,181.13,181.11,15.39053871]
[1754716796910,0.03,181.13,181.12,20.32770817]
[1754716797207,0.03,181.13,181.12,20.98770817]
[1754716798322,0.03,181.13,181.12,20.1855466]
[1754716798499,0.72,181.13,181.12,15.24837714]
[1754716798685,0.72,181.13,181.12,20.1855466]
[1754716799114,0.72,181.13,181.12,20.32770817]
[1754716799322,6.24089659,181.13,181.12,15.39053871]
[1754716800419,6.24089659,181.13,181.12,15.10621557]
[1754716801125,0.03,181.13,181.12,20.32770817]
[1754716802209,0.03,181.13,181.12,26.50890958]
[1754716802512,0.03,181.13,181.12,20.32770817]
[1754716802836,0.72,181.13,181.12,15.39053871]
[1754716803006,0.72,181.13,181.12,15.10621557]
[1754716803348,6.24089659,181.13,181.12,15.10621557]
[1754716803804,6.24089659,181.13,181.06,0.06]
[1754716803805,28.09239867,181.13,181.07,15.10621557]
[1754716804002,8.0492606,181.1,181.07,15.10621557]
[1754716804440,8.7092606,181.09,181.06,0.06]
[1754716804616,8.0492606,181.07,181.02,0.06]
[1754716804815,0.66,181.08,181.02,0.06]
[1754716805031,0.66,181.08,181.02,8.1092606]
[1754716805333,5.52211607,181.09,181.07,8.0492606]
[1754716805703,0.66,181.08,181.07,23.15547617]
[1754716805903,0.66,181.08,181.07,15.10621557]
[1754716806103,0.66,181.08,181.07,23.15547617]
[1754716806400,0.66,181.11,181.08,15.10621557]
[1754716806714,0.03,181.13,181.1,8.33358374]
[1754716806912,0.03,181.13,181.12,23.43979931]
[1754716807302,0.03,181.13,181.12,24.10979931]
[1754716807519,0.03,181.13,181.12,15.39053871]
[1754716807918,0.69,181.13,181.12,15.39053871]
[1754716808116,0.69,181.13,181.12,15.10621557]
[1754716808319,8.7392606,181.13,181.09,15.39053871]
[1754716808519,0.66,181.12,181.09,15.24837714]
[1754716808701,8.0492606,181.11,181.06,56.1492606]
[1754716808906,8.7092606,181.1,181.05,8.0492606]
[1754716809110,8.7092606,181.09,181.05,15.10621557]
[1754716809424,6.18243033,181.08,181.03,48.08]
[1754716809632,13.57169093,181.08,181.02,0.06]
[1754716809807,8.7092606,181.07,181.02,8.1092606]
[1754716810137,8.7092606,181.07,181.03,15.10621557]
[1754716810442,0.66,181.09,181.06,15.10621557]
[1754716810731,0.66,181.11,181.08,15.10621557]
[1754716811106,0.03,181.13,181.09,8.0492606]
[1754716811301,0.03,181.13,181.1,23.15547617]
[1754716811500,0.03,181.13,181.08,15.39053871]
[1754716811727,0.03,181.13,181.12,15.39053871]
[1754716811927,0.03,181.13,181.12,23.43979931]
[1754716812209,0.03,181.13,181.12,0.28432314]
[1754716812817,0.03,181.13,181.12,8.33358374]
[1754716813309,0.03,181.13,181.12,9.00358374]
[1754716813708,0.03,181.13,181.12,14.52478515]
[1754716814431,0.03,181.15,181.12,14.52478515]
[1754716814612,0.03,181.15,181.14,23.43979931]
[1754716815131,0.03,181.15,181.14,24.10979931]
[1754716815510,0.03,181.17,181.14,38.23171089]
[1754716815713,0.66,181.28,181.18,0.28432314]
[1754716815913,0.66,181.28,181.24,15.10621557]
[1754716816339,0.66,181.27,181.24,8.0492606]
[1754716816531,0.66,181.27,181.21,0.28432314]
[1754716816714,0.66,181.27,181.24,8.0492606]
[1754716816913,0.66,181.26,181.24,15.10621557]
[1754716817323,0.66,181.26,181.24,8.0492606]
[1754716817717,0.66,181.26,181.24,15.10621557]
[1754716818222,6.1769477,181.26,181.24,15.10621557]
[1754716818779,0.66,181.26,181.24,8.0492606]
[1754716818924,0.66,181.29,181.24,8.0492606]
[1754716819125,0.66,181.28,181.24,8.0492606]
[1754716819618,5.51632833,181.28,181.24,8.7192606]
[1754716820241,5.51632833,181.28,181.26,15.10621557]
[1754716821616,8.7092606,181.3,181.26,15.10621557]
[1754716821617,5.51602404,181.29,181.26,15.10621557]
[1754716821817,0.66,181.29,181.27,0.28432314]
[1754716822041,0.66,181.29,181.25,8.33358374]
[1754716822236,0.66,181.28,181.25,0.28432314]
[1754716822433,8.0792606,181.3,181.25,8.33358374]
[1754716822650,0.66,181.29,181.26,8.0492606]
[1754716822957,0.03,181.3,181.25,0.28432314]
[1754716822958,0.66,181.28,181.25,0.28432314]
[1754716823143,8.0792606,181.3,181.26,15.10621557]
[1754716823465,0.66,181.29,181.25,8.33358374]
[1754716823635,6.1762862,181.29,181.25,8.33358374]
[1754716824036,5.5162862,181.29,181.26,8.0492606]
[1754716824653,6.1762862,181.29,181.26,8.0492606]
[1754716825332,8.7092606,181.28,181.24,62.80621557]
[1754716825534,8.7092606,181.28,181.24,70.85547617]
[1754716825851,5.5162862,181.29,181.27,15.10621557]
[1754716826273,5.54594957,181.3,181.28,0.28432314]
[1754716827551,5.54594957,181.3,181.26,23.15547617]
[1754716827757,5.54594957,181.3,181.27,0.95432314]
[1754716828454,5.54594957,181.3,181.27,0.28432314]
[1754716829167,5.54594957,181.3,181.27,0.95432314]
[1754716829329,0.03,181.3,181.27,0.28432314]
[1754716829666,0.03,181.3,181.29,15.10621557]
[1754716830065,0.03,181.3,181.27,16.06053871]
[1754716830274,0.03,181.3,181.29,15.10621557]
[1754716831051,0.03,181.3,181.27,24.10979931]
[1754716831567,0.03,181.3,181.27,23.43979931]
[1754716831744,0.03,181.3,181.27,15.39053871]
[1754716831950,0.03,181.3,181.27,23.43979931]
[1754716832263,8.7092606,181.29,181.24,23.15547617]
[1754716832441,0.66,181.28,181.24,23.15547617]
[1754716832969,0.69,181.3,181.25,0.14216157]
[1754716833171,8.0492606,181.28,181.24,15.10621557]
[1754716833349,8.7592606,181.27,181.24,15.10621557]
[1754716833550,0.71,181.27,181.24,15.10621557]
[1754716833960,8.7892606,181.3,181.26,15.10621557]
[1754716834668,0.74,181.3,181.26,15.78621557]
[1754716834860,5.51602404,181.29,181.25,0.14216157]
[1754716835062,5.51602404,181.29,181.26,15.10621557]
[1754716835557,6.22602404,181.29,181.26,15.10621557]
[1754716835876,8.7592606,181.28,181.25,0.14216157]
[1754716836263,19.30608416,181.29,181.24,15.10621557]
[1754716836264,8.0492606,181.26,181.24,15.10621557]
[1754716836454,0.71,181.25,181.24,15.10621557]
[1754716836853,8.0492606,181.26,181.24,15.10621557]
[1754716837044,8.7592606,181.26,181.24,15.10621557]
[1754716837242,0.71,181.26,181.24,15.10621557]
[1754716837466,8.0492606,181.27,181.24,15.10621557]
[1754716837769,5.51663264,181.27,181.24,15.10621557]
[1754716837956,0.71,181.26,181.24,15.10621557]
[1754716838269,5.51663264,181.27,181.24,15.10621557]
[1754716838747,5.51663264,181.27,181.24,23.15547617]
[1754716838949,5.51638281,181.28,181.26,15.10621557]
[1754716839148,5.51606211,181.29,181.26,15.78621557]
[1754716839474,5.54576089,181.3,181.28,23.15547617]
[1754716839644,0.03,181.3,181.29,0.96432314]
[1754716839845,0.03,181.3,181.29,9.01358374]
[1754716840373,0.03,181.3,181.29,24.11979931]
[1754716840966,0.03,181.3,181.29,15.39053871]
[1754716841164,0.03,181.3,181.29,23.43979931]
[1754716841569,0.03,181.3,181.29,15.39053871]
[1754716841950,0.03,181.3,181.29,24.11979931]
[1754716844854,0.03,181.3,181.29,15.39053871]
[1754716845168,0.03,181.3,181.29,70.73979931]
[1754716845372,0.03,181.3,181.29,71.41979931]
[1754716846576,0.03,181.3,181.29,70.73979931]
[1754716846750,0.03,181.3,181.29,15.10621557]
[1754716846954,0.74,181.3,181.29,62.32621557]
[1754716847578,0.03,181.3,181.29,62.32621557]
[1754716847953,0.03,181.3,181.29,15.10621557]
[1754716848153,0.74,181.3,181.29,15.10621557]
[1754716848458,6.2557198,181.3,181.29,15.10621557]
[1754716848773,5.5457198,181.3,181.29,15.10621557]
[1754716848979,6.2557198,181.3,181.29,15.10621557]
[1754716849190,6.2557198,181.3,181.29,15.78621557]
[1754716849191,0.03,181.3,181.29,15.78621557]
[1754716849481,0.03,181.3,181.29,15.10621557]
[1754716850095,0.03,181.3,181.29,15.39053871]
[1754716850250,0.03,181.3,181.29,24.11979931]
[1754716850455,0.03,181.3,181.29,16.07053871]
[1754716850748,0.03,181.3,181.29,29.63582335]
[1754716851175,0.03,181.3,181.29,24.11979931]
[1754716851872,0.03,181.3,181.29,70.53979931]
[1754716852186,0.03,181.3,181.29,71.21979931]
[1754716852352,0.03,181.3,181.29,24.11979931]
[1754716852748,0.03,181.3,181.29,71.19979931]
[1754716853265,0.03,181.3,181.29,62.47053871]
[1754716853579,0.03,181.3,181.29,15.10621557]
[1754716853778,0.03,181.3,181.29,23.29763774]
[1754716854077,0.74,181.3,181.29,15.10621557]
[1754716854657,0.03,181.3,181.29,15.10621557]
[1754716854967,0.03,181.3,181.29,23.15547617]
[1754716855285,0.03,181.3,181.29,24.11979931]
[1754716855480,0.03,181.3,181.29,23.43979931]
[1754716855980,0.03,181.3,181.29,24.11979931]
[1754716856276,0.03,181.3,181.29,15.39053871]
[1754716856483,0.03,181.3,181.29,15.10621557]
[1754716856680,0.03,181.3,181.29,62.10621557]
[1754716857170,0.03,181.3,181.29,70.43979931]
[1754716857565,0.03,181.3,181.29,63.07053871]
[1754716857769,0.03,181.3,181.29,71.11979931]
[1754716857965,0.03,181.3,181.29,70.43979931]
[1754716858302,0.03,181.3,181.29,71.11979931]
[1754716858811,0.03,181.3,181.29,70.43979931]
[1754716858976,0.03,181.3,181.29,62.39053871]
[1754716859161,0.03,181.3,181.29,70.43979931]
[1754716859366,0.03,181.3,181.29,62.39053871]
[1754716859685,0.03,181.3,181.29,70.43979931]
[1754716860076,0.03,181.3,181.29,71.11979931]
[1754716860276,0.74,181.3,181.29,15.10621557]
[1754716860577,6.2557198,181.3,181.29,15.10621557]
[1754716861330,6.2557198,181.3,181.28,15.10621557]
[1754716861507,6.2557198,181.3,181.27,20.03737614]
[1754716861675,6.2557198,181.3,181.27,15.10621557]
[1754716862009,6.2557198,181.3,181.27,20.03737614]
[1754716862498,10.4474889,181.28,181.25,15.10621557]
[1754716862709,5.64116057,181.27,181.25,15.10621557]
[1754716862891,0.74,181.3,181.27,15.10621557]
[1754716863294,0.03,181.3,181.29,15.10621557]
[1754716863493,0.03,181.3,181.29,0.28432314]
[1754716863720,0.03,181.3,181.29,67.90169928]
[1754716864587,0.03,181.3,181.29,62.97053871]
[1754716864911,0.03,181.3,181.29,67.90169928]
[1754716865216,0.03,181.3,181.29,62.97053871]
[1754716865523,0.03,181.3,181.29,67.90169928]
[1754716865684,0.03,181.32,181.31,20.32169928]
[1754716866130,0.03,181.32,181.31,21.04169928]
[1754716867020,0.03,181.32,181.31,26.55711486]
[1754716867186,0.03,181.32,181.31,21.62595429]
[1754716867499,0.03,181.32,181.31,21.04169928]
[1754716867890,0.03,181.32,181.31,62.19053871]
[1754716868090,0.7,181.32,181.31,15.10621557]
[1754716868298,0.7,181.32,181.29,15.10621557]
[1754716868502,0.67,181.31,181.29,15.10621557]
[1754716868714,0.67,181.3,181.29,15.10621557]
[1754716869499,6.2151114,181.32,181.29,15.10621557]
[1754716869818,0.67,181.31,181.29,15.10621557]
[1754716870025,0.67,181.3,181.29,15.10621557]
[1754716870230,0.67,181.3,181.26,0.5]
[1754716870412,0.67,181.3,181.27,15.10621557]
[1754716870728,6.18575662,181.3,181.27,15.10621557]
[1754716871708,5.51575662,181.3,181.27,15.10621557]
[1754716871902,5.60116057,181.29,181.27,15.10621557]
[1754716872224,0.67,181.28,181.27,15.10621557]
[1754716872606,6.18644422,181.28,181.26,0.5]
[1754716873725,5.60116057,181.27,181.25,15.10621557]
[1754716873935,0.67,181.26,181.23,2.80335258]
[1754716874303,5.51644422,181.28,181.24,15.10621557]
[1754716874514,5.51644422,181.28,181.24,20.03737614]
[1754716874515,6.18644422,181.28,181.24,20.03737614]
[1754716875022,0.67,181.27,181.24,15.10621557]
[1754716875416,5.51644422,181.28,181.24,15.10621557]
[1754716875616,0.03,181.32,181.25,5.65116057]
[1754716875617,6.18541558,181.31,181.25,5.65116057]
[1754716875836,4.93116057,181.3,181.25,5.65116057]
[1754716876036,6.18541558,181.31,181.27,15.10621557]
[1754716876238,10.47632934,181.32,181.27,20.75737614]
[1754716876438,5.54516877,181.32,181.29,15.10621557]
[1754716876643,0.03,181.32,181.29,15.10621557]
[1754716876819,11.14636486,181.32,181.29,15.10621557]
[1754716877021,6.21520429,181.32,181.29,15.10621557]
[1754716877358,0.03,181.32,181.29,4.93116057]
[1754716877534,0.03,181.32,181.28,0.28432314]
[1754716877729,0.03,181.32,181.29,15.10621557]
[1754716878122,0.67,181.31,181.27,15.10621557]
[1754716878334,0.03,181.32,181.29,15.10621557]
[1754716878845,0.03,181.32,181.28,0.28432314]
[1754716879150,0.67,181.31,181.28,0.28432314]
[1754716879323,5.60116057,181.31,181.27,15.10621557]
[1754716879826,5.60116057,181.3,181.26,0.5]
[1754716880028,4.93116057,181.31,181.27,15.10621557]
[1754716880351,0.67,181.31,181.27,15.10621557]
[1754716880740,0.03,181.32,181.27,15.82621557]
[1754716881046,5.63116057,181.32,181.27,20.75737614]
[1754716881227,0.7,181.32,181.27,20.75737614]
[1754716881424,0.7,181.32,181.27,15.82621557]
[1754716881743,4.93116057,181.28,181.26,0.5]
[1754716881925,5.60116057,181.27,181.26,0.5]
[1754716882124,0.67,181.27,181.26,0.5]
[1754716882618,0.67,181.29,181.23,7.73451315]
[1754716882856,5.51632833,181.28,181.24,15.10621557]
[1754716883049,6.18632833,181.28,181.24,15.10621557]
[1754716883225,11.1174889,181.28,181.24,15.10621557]
[1754716883739,4.93116057,181.26,181.23,2.80335258]
[1754716883947,5.60116057,181.27,181.23,2.80335258]
[1754716884152,5.51632833,181.28,181.24,15.10621557]
[1754716884339,5.51632833,181.28,181.24,15.82621557]
[1754716884525,5.60116057,181.27,181.24,15.10621557]
[1754716884856,5.60116057,181.26,181.23,2.80335258]
[1754716885039,6.18711106,181.26,181.23,2.80335258]
[1754716885221,0.67,181.26,181.23,2.80335258]
[1754716885425,0.67,181.29,181.24,15.10621557]
[1754716885650,0.67,181.29,181.24,15.82621557]
[1754716885863,5.60116057,181.29,181.24,15.82621557]
[1754716886041,0.67,181.29,181.24,15.82621557]
[1754716886236,5.60116057,181.29,181.24,15.82621557]
[1754716886455,5.60116057,181.29,181.25,0.72]
[1754716886666,5.60116057,181.28,181.24,15.10621557]
[1754716887162,5.51693699,181.26,181.23,2.80335258]
[1754716887364,5.51693699,181.26,181.23,3.52335258]
[1754716887531,5.51665882,181.27,181.23,8.45451315]
[1754716887730,10.44781939,181.27,181.23,3.52335258]
[1754716887950,11.11781939,181.27,181.23,2.80335258]
[1754716888335,6.18665882,181.27,181.24,15.10621557]
[1754716888532,6.18665882,181.27,181.23,2.80335258]
[1754716888857,10.44781939,181.27,181.23,2.80335258]
[1754716889066,5.51724137,181.25,181.23,2.80335258]
[1754716889860,10.44840194,181.25,181.23,2.80335258]
[1754716890041,0.67,181.24,181.23,17.90956815]
[1754716890232,10.44840194,181.25,181.23,17.90956815]
[1754716890564,11.11840194,181.25,181.23,17.90956815]
[1754716891068,0.67,181.28,181.23,17.90956815]
[1754716891227,45.30424005,181.31,181.23,17.90956815]
[1754716891228,4.93116057,181.26,181.23,17.90956815]
[1754716891631,4.93116057,181.25,181.23,17.90956815]
[1754716892062,4.93116057,181.26,181.23,17.90956815]
[1754716892361,5.60116057,181.26,181.23,17.90956815]
[1754716892731,4.93116057,181.25,181.23,17.90956815]
[1754716893038,5.51754579,181.24,181.23,17.90956815]
[1754716893240,6.18754579,181.24,181.23,17.90956815]
[1754716893444,5.51754579,181.24,181.23,17.90956815]
[1754716893848,10.44870636,181.24,181.23,17.90956815]
[1754716894361,5.51729453,181.25,181.23,17.90956815]
[1754716894840,10.4484551,181.25,181.23,17.90956815]
[1754716895241,5.51729453,181.25,181.23,17.90956815]
[1754716895644,13.79059677,181.29,181.24,15.10621557]
[1754716895942,4.93116057,181.27,181.25,15.10621557]
[1754716896152,5.61116057,181.26,181.23,2.80335258]
[1754716896332,0.68,181.26,181.23,2.80335258]
[1754716896536,4.93116057,181.27,181.24,0.66]
[1754716896946,4.93116057,181.27,181.25,15.10621557]
[1754716897261,19.9850193,181.3,181.25,15.10621557]
[1754716897262,19.9850193,181.3,181.25,0.66]
[1754716897563,0.68,181.29,181.25,0.66]
[1754716897758,0.71,181.32,181.26,15.76621557]
[1754716897967,0.03,181.32,181.27,0.28432314]
[1754716898177,4.96116057,181.32,181.29,15.10621557]
[1754716898339,4.93116057,181.3,181.25,0.66]
[1754716898650,0.68,181.3,181.26,15.10621557]
[1754716899050,5.61116057,181.3,181.26,15.10621557]
[1754716899247,0.03,181.32,181.24,0.66]
[1754716899248,4.93116057,181.28,181.24,0.66]
[1754716899448,0.68,181.27,181.24,15.10621557]
[1754716899638,4.93116057,181.26,181.24,15.10621557]
[1754716899851,5.61116057,181.27,181.24,15.10621557]
[1754716900061,5.61116057,181.26,181.23,2.80335258]
[1754716900263,4.93116057,181.25,181.23,2.80335258]
[1754716900637,0.68,181.26,181.23,2.80335258]